[Event "Titled Tuesday Blitz August 09 Late 2022"]
[White "Souleidis, Georgios"]
[Black "Przybylski, Wojciech"]
[WhiteFideId "4206827"]
[BlackFideId "1117599"]
[WhiteElo "2401"]
[BlackElo "2133"]
[Result "0-1"]
[Round "08"]
[TimeControl "180+1"]
[Date "2022.08.09"]
[WhiteClock "0:00:03"]
[BlackClock "0:00:04"]

1. e4 {[%clk 0:03:00]}  e5 {[%clk 0:02:53]} 2. Nf3 {[%clk 0:03:00]}  Nf6 {[%clk 0:02:52]} 3. Nc3 {[%clk 0:02:59]}  Bb4 {[%clk 0:02:50]} 4. Nxe5 {[%clk 0:02:59]}  O-O {[%clk 0:02:50]} 5. Be2 {[%clk 0:02:59]}  Re8 {[%clk 0:02:49]} 6. Nd3 {[%clk 0:02:59]}  Bxc3 {[%clk 0:02:49]} 7. dxc3 {[%clk 0:03:00]}  Nxe4 {[%clk 0:02:49]} 8. Nf4 {[%clk 0:03:01]}  c6 {[%clk 0:02:48]} 9. c4 {[%clk 0:03:01]}  d6 {[%clk 0:02:48]} 10. O-O {[%clk 0:03:01]}  Na6 {[%clk 0:02:41]} 11. f3 {[%clk 0:02:58]}  Nf6 {[%clk 0:02:38]} 12. Rf2 {[%clk 0:02:46]}  Nc5 {[%clk 0:02:29]} 13. b3 {[%clk 0:02:41]}  Qe7 {[%clk 0:02:03]} 14. Bb2 {[%clk 0:02:23]}  Bf5 {[%clk 0:02:02]} 15. Qd2 {[%clk 0:02:11]}  Rad8 {[%clk 0:01:57]} 16. Rd1 {[%clk 0:02:02]}  h6 {[%clk 0:01:40]} 17. Bf1 {[%clk 0:01:58]}  Ne6 {[%clk 0:00:56]} 18. Re2 {[%clk 0:01:39]}  Nh7 {[%clk 0:00:49]} 19. g4 {[%clk 0:01:01]}  Qg5 {[%clk 0:00:49]} 20. Nxe6 {[%clk 0:00:50]}  Bxe6 {[%clk 0:00:45]} 21. h3 {[%clk 0:00:45]}  d5 {[%clk 0:00:39]} 22. c5 {[%clk 0:00:21]}  h5 {[%clk 0:00:26]} 23. f4 {[%clk 0:00:21]}  Qh4 {[%clk 0:00:25]} 24. f5 {[%clk 0:00:17]}  Bd7 {[%clk 0:00:24]} 25. Qf4 {[%clk 0:00:06]}  hxg4 {[%clk 0:00:22]} 26. Qxg4 {[%clk 0:00:05]}  Qxg4+ {[%clk 0:00:13]} 27. hxg4 {[%clk 0:00:06]}  Ng5 {[%clk 0:00:13]} 28. Kg2 {[%clk 0:00:06]}  Rxe2+ {[%clk 0:00:09]} 29. Bxe2 {[%clk 0:00:07]}  Re8 {[%clk 0:00:10]} 30. Bd3 {[%clk 0:00:07]}  f6 {[%clk 0:00:09]} 31. Bc3 {[%clk 0:00:07]}  Kf7 {[%clk 0:00:09]} 32. Re1 {[%clk 0:00:06]}  Rh8 {[%clk 0:00:08]} 33. Rh1 {[%clk 0:00:05]}  Re8 {[%clk 0:00:08]} 34. Bd2 {[%clk 0:00:05]}  Ne4 {[%clk 0:00:07]} 35. Bf4 {[%clk 0:00:05]}  Nxc5 {[%clk 0:00:06]} 36. Rd1 {[%clk 0:00:03]}  Ne4 {[%clk 0:00:06]} 37. Kf3 {[%clk 0:00:02]}  Nc3 {[%clk 0:00:05]} 38. Rh1 {[%clk 0:00:02]}  Nxa2 {[%clk 0:00:05]} 39. g5 {[%clk 0:00:02]}  fxg5 {[%clk 0:00:04]} 40. Bxg5 {[%clk 0:00:03]}  Nb4 {[%clk 0:00:04]} 0-1


[Site "https://www.chess.com"]

[Event "Titled Tuesday Blitz August 09 Late 2022"]
[White "Taichman, Ori"]
[Black "Tanenbaum, Zachary"]
[WhiteFideId "2804069"]
[BlackFideId "2060850"]
[WhiteElo "2227"]
[BlackElo "2175"]
[Result "1/2-1/2"]
[Round "08"]
[TimeControl "180+1"]
[Date "2022.08.09"]
[WhiteClock "0:00:10"]
[BlackClock "0:00:09"]

1. e4 {[%clk 0:03:00]}  e5 {[%clk 0:03:00]} 2. d4 {[%clk 0:03:00]}  Nc6 {[%clk 0:03:01]} 3. dxe5 {[%clk 0:03:01]}  Nxe5 {[%clk 0:03:01]} 4. f4 {[%clk 0:03:01]}  Nc6 {[%clk 0:03:00]} 5. Bc4 {[%clk 0:03:01]}  d6 {[%clk 0:02:57]} 6. Nc3 {[%clk 0:03:00]}  Nf6 {[%clk 0:02:57]} 7. Nf3 {[%clk 0:02:58]}  Be7 {[%clk 0:02:54]} 8. O-O {[%clk 0:02:57]}  O-O {[%clk 0:02:54]} 9. h3 {[%clk 0:02:58]}  Be6 {[%clk 0:02:51]} 10. Bxe6 {[%clk 0:02:57]}  fxe6 {[%clk 0:02:51]} 11. g4 {[%clk 0:02:52]}  Qe8 {[%clk 0:01:57]} 12. Ng5 {[%clk 0:02:43]}  Qd7 {[%clk 0:01:27]} 13. f5 {[%clk 0:02:38]}  exf5 {[%clk 0:01:23]} 14. exf5 {[%clk 0:02:38]}  h6 {[%clk 0:00:54]} 15. Ne6 {[%clk 0:02:38]}  Rfe8 {[%clk 0:00:55]} 16. Nd5 {[%clk 0:02:27]}  Rac8 {[%clk 0:00:51]} 17. h4 {[%clk 0:02:22]}  Ne5 {[%clk 0:00:45]} 18. g5 {[%clk 0:02:20]}  hxg5 {[%clk 0:00:45]} 19. hxg5 {[%clk 0:02:20]}  Nxd5 {[%clk 0:00:44]} 20. Qxd5 {[%clk 0:02:20]}  c6 {[%clk 0:00:44]} 21. Qh1 {[%clk 0:02:18]}  Rf8 {[%clk 0:00:28]} 22. Nxf8 {[%clk 0:01:54]}  Rxf8 {[%clk 0:00:29]} 23. g6 {[%clk 0:01:52]}  Nxg6 {[%clk 0:00:24]} 24. fxg6 {[%clk 0:01:53]}  Qg4+ {[%clk 0:00:25]} 25. Qg2 {[%clk 0:01:52]}  Qd4+ {[%clk 0:00:18]} 26. Be3 {[%clk 0:01:27]}  Qxe3+ {[%clk 0:00:18]} 27. Kh1 {[%clk 0:01:25]}  Qh6+ {[%clk 0:00:19]} 28. Qh2 {[%clk 0:01:26]}  Rxf1+ {[%clk 0:00:19]} 29. Rxf1 {[%clk 0:01:25]}  Qxg6 {[%clk 0:00:20]} 30. Qh3 {[%clk 0:01:22]}  Qe4+ {[%clk 0:00:19]} 31. Qf3 {[%clk 0:01:22]}  Qxf3+ {[%clk 0:00:19]} 32. Rxf3 {[%clk 0:01:22]}  Bf6 {[%clk 0:00:20]} 33. b4 {[%clk 0:01:21]}  d5 {[%clk 0:00:19]} 34. a4 {[%clk 0:01:21]}  Kf7 {[%clk 0:00:19]} 35. b5 {[%clk 0:01:21]}  Ke6 {[%clk 0:00:20]} 36. bxc6 {[%clk 0:01:10]}  bxc6 {[%clk 0:00:20]} 37. Rb3 {[%clk 0:01:10]}  Kd6 {[%clk 0:00:19]} 38. a5 {[%clk 0:01:09]}  Bd4 {[%clk 0:00:17]} 39. a6 {[%clk 0:01:08]}  c5 {[%clk 0:00:16]} 40. Rb6+ {[%clk 0:01:03]}  Ke5 {[%clk 0:00:14]} 41. Rb7 {[%clk 0:01:03]}  c4 {[%clk 0:00:14]} 42. Rxg7 {[%clk 0:01:04]}  Ke4 {[%clk 0:00:14]} 43. Re7+ {[%clk 0:01:01]}  Kf3 {[%clk 0:00:13]} 44. Kh2 {[%clk 0:00:55]}  Be3 {[%clk 0:00:10]} 45. Kh3 {[%clk 0:00:53]}  Ke2 {[%clk 0:00:10]} 46. Rd7 {[%clk 0:00:48]}  d4 {[%clk 0:00:08]} 47. Rxa7 {[%clk 0:00:48]}  d3 {[%clk 0:00:09]} 48. cxd3 {[%clk 0:00:13]}  cxd3 {[%clk 0:00:10]} 49. Rd7 {[%clk 0:00:09]}  d2 {[%clk 0:00:09]} 50. Rxd2+ {[%clk 0:00:08]}  Kxd2 {[%clk 0:00:09]} 51. Kg4 {[%clk 0:00:08]}  Kd3 {[%clk 0:00:09]} 52. Kf5 {[%clk 0:00:09]}  Kc4 {[%clk 0:00:09]} 53. a7 {[%clk 0:00:10]}  Bxa7 {[%clk 0:00:09]} 1/2-1/2


[Site "https://www.chess.com"]

[Event "Titled Tuesday Blitz August 09 Late 2022"]
[White "Terry, Renato"]
[Black "Pakleza, Zbigniew"]
[WhiteFideId "3803457"]
[BlackFideId "1119290"]
[WhiteElo "2577"]
[BlackElo "2411"]
[Result "1-0"]
[Round "08"]
[TimeControl "180+1"]
[Date "2022.08.09"]
[WhiteClock "0:00:07"]
[BlackClock "0:00:02"]

1. d4 {[%clk 0:03:00]}  d6 {[%clk 0:02:59]} 2. Nf3 {[%clk 0:03:01]}  Bg4 {[%clk 0:02:59]} 3. c4 {[%clk 0:03:01]}  c6 {[%clk 0:02:59]} 4. g3 {[%clk 0:02:58]}  Bxf3 {[%clk 0:02:59]} 5. exf3 {[%clk 0:02:58]}  e6 {[%clk 0:03:00]} 6. d5 {[%clk 0:02:58]}  exd5 {[%clk 0:02:56]} 7. cxd5 {[%clk 0:02:58]}  c5 {[%clk 0:02:57]} 8. Qb3 {[%clk 0:02:47]}  Qc7 {[%clk 0:02:43]} 9. Nc3 {[%clk 0:02:14]}  a6 {[%clk 0:02:40]} 10. a4 {[%clk 0:01:58]}  Nf6 {[%clk 0:02:36]} 11. Be2 {[%clk 0:01:47]}  Be7 {[%clk 0:02:30]} 12. O-O {[%clk 0:01:48]}  O-O {[%clk 0:02:31]} 13. Be3 {[%clk 0:01:47]}  b6 {[%clk 0:02:22]} 14. Rac1 {[%clk 0:01:46]}  Nbd7 {[%clk 0:02:22]} 15. Qc2 {[%clk 0:01:41]}  Rfe8 {[%clk 0:02:18]} 16. f4 {[%clk 0:01:40]}  Qb7 {[%clk 0:02:14]} 17. Qd3 {[%clk 0:01:38]}  Bf8 {[%clk 0:02:04]} 18. b3 {[%clk 0:01:38]}  g6 {[%clk 0:01:47]} 19. g4 {[%clk 0:01:36]}  h6 {[%clk 0:01:34]} 20. Rfe1 {[%clk 0:01:25]}  Bg7 {[%clk 0:01:30]} 21. h3 {[%clk 0:01:21]}  Re7 {[%clk 0:01:16]} 22. Kh2 {[%clk 0:01:14]}  Qc7 {[%clk 0:01:07]} 23. g5 {[%clk 0:01:00]}  hxg5 {[%clk 0:00:50]} 24. fxg5 {[%clk 0:01:00]}  Ne5 {[%clk 0:00:51]} 25. Qc2 {[%clk 0:01:00]}  Nh7 {[%clk 0:00:45]} 26. f4 {[%clk 0:00:49]}  Nd7 {[%clk 0:00:45]} 27. Qd2 {[%clk 0:00:49]}  Qb7 {[%clk 0:00:33]} 28. Bc4 {[%clk 0:00:43]}  Rae8 {[%clk 0:00:18]} 29. h4 {[%clk 0:00:39]}  Nhf8 {[%clk 0:00:16]} 30. Kg1 {[%clk 0:00:33]}  Qa7 {[%clk 0:00:09]} 31. Kf1 {[%clk 0:00:31]}  Qb7 {[%clk 0:00:08]} 32. h5 {[%clk 0:00:19]}  Qc8 {[%clk 0:00:04]} 33. h6 {[%clk 0:00:13]}  Bh8 {[%clk 0:00:04]} 34. Kg2 {[%clk 0:00:12]}  Nb8 {[%clk 0:00:04]} 35. Bf2 {[%clk 0:00:08]}  f6 {[%clk 0:00:02]} 36. Bg3 {[%clk 0:00:07]} 1-0


[Site "https://www.chess.com"]

[Event "Titled Tuesday Blitz August 09 Late 2022"]
[White "Yanchenko, Roman"]
[Black "Esipenko, Andrey"]
[WhiteFideId "4137329"]
[BlackFideId "24175439"]
[WhiteElo "2514"]
[BlackElo "2619"]
[Result "1-0"]
[Round "08"]
[TimeControl "180+1"]
[Date "2022.08.09"]
[WhiteClock "0:00:07"]
[BlackClock "0:00:14"]

1. d4 {[%clk 0:03:00]}  Nf6 {[%clk 0:02:59]} 2. c4 {[%clk 0:03:01]}  d5 {[%clk 0:02:58]} 3. Nf3 {[%clk 0:03:01]}  e6 {[%clk 0:02:54]} 4. Nc3 {[%clk 0:03:01]}  c5 {[%clk 0:02:53]} 5. e3 {[%clk 0:03:00]}  a6 {[%clk 0:02:53]} 6. a3 {[%clk 0:03:00]}  dxc4 {[%clk 0:02:53]} 7. Bxc4 {[%clk 0:03:00]}  b5 {[%clk 0:02:53]} 8. Be2 {[%clk 0:03:00]}  Bb7 {[%clk 0:02:53]} 9. O-O {[%clk 0:03:00]}  Nbd7 {[%clk 0:02:54]} 10. b3 {[%clk 0:02:58]}  Bd6 {[%clk 0:02:45]} 11. Bb2 {[%clk 0:02:55]}  O-O {[%clk 0:02:46]} 12. h3 {[%clk 0:02:51]}  Rc8 {[%clk 0:02:44]} 13. Qd2 {[%clk 0:02:27]}  Qe7 {[%clk 0:02:42]} 14. Rfd1 {[%clk 0:02:23]}  Rfd8 {[%clk 0:02:42]} 15. Qe1 {[%clk 0:02:06]}  h6 {[%clk 0:02:39]} 16. dxc5 {[%clk 0:01:44]}  Nxc5 {[%clk 0:02:39]} 17. Nd4 {[%clk 0:01:44]}  Bb8 {[%clk 0:02:27]} 18. b4 {[%clk 0:01:43]}  Qc7 {[%clk 0:02:25]} 19. f4 {[%clk 0:01:35]}  Ncd7 {[%clk 0:02:25]} 20. Rac1 {[%clk 0:01:32]}  Qb6 {[%clk 0:02:25]} 21. Qg3 {[%clk 0:01:00]}  Re8 {[%clk 0:02:19]} 22. Bf3 {[%clk 0:00:59]}  Bxf3 {[%clk 0:02:16]} 23. gxf3 {[%clk 0:00:50]}  Kh7 {[%clk 0:01:59]} 24. Ne4 {[%clk 0:00:41]}  Rxc1 {[%clk 0:01:39]} 25. Rxc1 {[%clk 0:00:42]}  Nxe4 {[%clk 0:01:36]} 26. fxe4 {[%clk 0:00:41]}  e5 {[%clk 0:01:36]} 27. Rc6 {[%clk 0:00:19]}  Qb7 {[%clk 0:01:36]} 28. Nf5 {[%clk 0:00:18]}  Rg8 {[%clk 0:01:10]} 29. Ne7 {[%clk 0:00:17]}  Nf6 {[%clk 0:00:29]} 30. Rxf6 {[%clk 0:00:17]}  Qxe7 {[%clk 0:00:29]} 31. Rf5 {[%clk 0:00:17]}  g6 {[%clk 0:00:24]} 32. Rxe5 {[%clk 0:00:14]}  Bxe5 {[%clk 0:00:24]} 33. Bxe5 {[%clk 0:00:15]}  Qd7 {[%clk 0:00:24]} 34. Bd4 {[%clk 0:00:15]}  Qc6 {[%clk 0:00:24]} 35. Qf3 {[%clk 0:00:14]}  Rc8 {[%clk 0:00:19]} 36. f5 {[%clk 0:00:13]}  g5 {[%clk 0:00:19]} 37. Qh5 {[%clk 0:00:11]}  Rc7 {[%clk 0:00:17]} 38. Kf2 {[%clk 0:00:09]}  Qxe4 {[%clk 0:00:17]} 39. Kg3 {[%clk 0:00:08]}  Qxf5 {[%clk 0:00:16]} 40. Qe2 {[%clk 0:00:08]}  h5 {[%clk 0:00:14]} 41. Qxh5+ {[%clk 0:00:07]} 1-0


[Site "https://www.chess.com"]

[Event "Titled Tuesday Blitz August 09 Late 2022"]
[White "Altman, Joshua"]
[Black "Bartholomew, John"]
[WhiteFideId "426210"]
[BlackFideId "2019353"]
[WhiteElo "1945"]
[BlackElo "2747"]
[Result "0-1"]
[Round "09"]
[TimeControl "180+1"]
[Date "2022.08.09"]
[WhiteClock "0:00:02"]
[BlackClock "0:00:09"]

1. d4 {[%clk 0:03:00]}  d5 {[%clk 0:02:58]} 2. c4 {[%clk 0:03:01]}  c6 {[%clk 0:02:58]} 3. cxd5 {[%clk 0:03:01]}  cxd5 {[%clk 0:02:59]} 4. Nf3 {[%clk 0:03:02]}  Nf6 {[%clk 0:02:59]} 5. Nc3 {[%clk 0:03:02]}  Nc6 {[%clk 0:02:58]} 6. Bf4 {[%clk 0:03:03]}  e6 {[%clk 0:02:58]} 7. e3 {[%clk 0:03:03]}  Bd6 {[%clk 0:02:57]} 8. Bg3 {[%clk 0:03:03]}  O-O {[%clk 0:02:57]} 9. Bd3 {[%clk 0:03:03]}  Qe7 {[%clk 0:02:54]} 10. Ne5 {[%clk 0:03:03]}  Bxe5 {[%clk 0:02:48]} 11. dxe5 {[%clk 0:03:04]}  Nd7 {[%clk 0:02:47]} 12. f4 {[%clk 0:03:04]}  f5 {[%clk 0:02:40]} 13. exf6 {[%clk 0:02:46]}  Nxf6 {[%clk 0:02:39]} 14. O-O {[%clk 0:02:46]}  Bd7 {[%clk 0:02:20]} 15. Qd2 {[%clk 0:02:33]}  Rac8 {[%clk 0:02:14]} 16. Rae1 {[%clk 0:02:32]}  Qc5 {[%clk 0:02:07]} 17. Bf2 {[%clk 0:02:28]}  Ng4 {[%clk 0:01:57]} 18. h3 {[%clk 0:01:57]}  Nxf2 {[%clk 0:01:57]} 19. Qxf2 {[%clk 0:01:58]}  e5 {[%clk 0:01:45]} 20. Qh4 {[%clk 0:01:41]}  e4 {[%clk 0:01:42]} 21. Bc2 {[%clk 0:01:41]}  Be6 {[%clk 0:01:21]} 22. Bb3 {[%clk 0:01:41]}  Nb4 {[%clk 0:01:12]} 23. Nxe4 {[%clk 0:01:33]}  Qb6 {[%clk 0:01:10]} 24. Ng5 {[%clk 0:01:28]}  Bf5 {[%clk 0:00:55]} 25. Kh1 {[%clk 0:01:17]}  Kh8 {[%clk 0:00:47]} 26. e4 {[%clk 0:01:11]}  dxe4 {[%clk 0:00:43]} 27. Be6 {[%clk 0:00:49]}  h6 {[%clk 0:00:27]} 28. Bxc8 {[%clk 0:00:47]}  Rxc8 {[%clk 0:00:25]} 29. Nxe4 {[%clk 0:00:41]}  Nd3 {[%clk 0:00:20]} 30. Re2 {[%clk 0:00:37]}  Nc1 {[%clk 0:00:19]} 31. Ree1 {[%clk 0:00:30]}  Nd3 {[%clk 0:00:19]} 32. Qh5 {[%clk 0:00:17]}  Bg6 {[%clk 0:00:14]} 33. Qg4 {[%clk 0:00:15]}  Re8 {[%clk 0:00:14]} 34. f5 {[%clk 0:00:13]}  Nxe1 {[%clk 0:00:14]} 35. fxg6 {[%clk 0:00:09]}  Nd3 {[%clk 0:00:13]} 36. Qd7 {[%clk 0:00:08]}  Qxg6 {[%clk 0:00:13]} 37. Nd6 {[%clk 0:00:06]}  Re2 {[%clk 0:00:10]} 38. Nf7+ {[%clk 0:00:04]}  Kh7 {[%clk 0:00:10]} 39. Rg1 {[%clk 0:00:02]}  Nf2+ {[%clk 0:00:10]} 40. Kh2 {[%clk 0:00:03]}  Ne4 {[%clk 0:00:11]} 41. Qg4 {[%clk 0:00:01]}  Qxg4 {[%clk 0:00:09]} 42. hxg4 {[%clk 0:00:02]}  Rxb2 {[%clk 0:00:10]} 43. Ne5 {[%clk 0:00:02]}  Rxa2 {[%clk 0:00:09]} 44. Re1 {[%clk 0:00:03]}  Nf6 {[%clk 0:00:10]} 45. Nf7 {[%clk 0:00:03]}  Nxg4+ {[%clk 0:00:10]} 46. Kg3 {[%clk 0:00:03]}  Nf6 {[%clk 0:00:10]} 47. Re7 {[%clk 0:00:03]}  Ra3+ {[%clk 0:00:11]} 48. Kh2 {[%clk 0:00:03]}  Rb3 {[%clk 0:00:09]} 49. g3 {[%clk 0:00:02]}  a5 {[%clk 0:00:09]} 50. Ne5 {[%clk 0:00:03]}  Re3 {[%clk 0:00:09]} 51. g4 {[%clk 0:00:02]}  Rxe5 {[%clk 0:00:09]} 0-1


[Site "https://www.chess.com"]

[Event "Titled Tuesday Blitz August 09 Late 2022"]
[White "Amburgy, Ryan"]
[Black "Kamsky, Gata"]
[WhiteFideId "30924820"]
[BlackFideId "2000024"]
[WhiteElo "2066"]
[BlackElo "2666"]
[Result "1-0"]
[Round "09"]
[TimeControl "180+1"]
[Date "2022.08.09"]
[WhiteClock "0:00:08"]
[BlackClock "0:00:01"]

1. Nf3 {[%clk 0:03:00]}  f5 {[%clk 0:02:57]} 2. d3 {[%clk 0:03:00]}  Nc6 {[%clk 0:02:55]} 3. d4 {[%clk 0:03:00]}  Nf6 {[%clk 0:02:48]} 4. c4 {[%clk 0:02:59]}  e6 {[%clk 0:02:43]} 5. g3 {[%clk 0:02:57]}  Bb4+ {[%clk 0:02:41]} 6. Bd2 {[%clk 0:02:57]}  a5 {[%clk 0:02:39]} 7. Bg2 {[%clk 0:02:56]}  O-O {[%clk 0:02:38]} 8. O-O {[%clk 0:02:56]}  Bxd2 {[%clk 0:02:31]} 9. Nbxd2 {[%clk 0:02:49]}  d6 {[%clk 0:02:31]} 10. a3 {[%clk 0:02:18]}  a4 {[%clk 0:02:12]} 11. Nb1 {[%clk 0:02:12]}  e5 {[%clk 0:02:09]} 12. d5 {[%clk 0:02:12]}  Nb8 {[%clk 0:02:03]} 13. Nc3 {[%clk 0:02:11]}  Qe8 {[%clk 0:01:59]} 14. Ne1 {[%clk 0:01:36]}  Bd7 {[%clk 0:01:56]} 15. Nd3 {[%clk 0:01:34]}  Na6 {[%clk 0:01:55]} 16. e4 {[%clk 0:01:26]}  fxe4 {[%clk 0:01:49]} 17. Nxe4 {[%clk 0:01:27]}  Bf5 {[%clk 0:01:41]} 18. f3 {[%clk 0:01:12]}  b6 {[%clk 0:01:37]} 19. Nb4 {[%clk 0:00:50]}  Nc5 {[%clk 0:01:31]} 20. Nxc5 {[%clk 0:00:36]}  bxc5 {[%clk 0:01:30]} 21. Nc6 {[%clk 0:00:37]}  Bd7 {[%clk 0:01:17]} 22. f4 {[%clk 0:00:37]}  Bxc6 {[%clk 0:01:17]} 23. dxc6 {[%clk 0:00:37]}  exf4 {[%clk 0:01:15]} 24. Rxf4 {[%clk 0:00:36]}  Qe3+ {[%clk 0:01:15]} 25. Kh1 {[%clk 0:00:36]}  Rfe8 {[%clk 0:00:58]} 26. Qc2 {[%clk 0:00:27]}  Qe2 {[%clk 0:00:50]} 27. Rc1 {[%clk 0:00:28]}  Qxc2 {[%clk 0:00:48]} 28. Rxc2 {[%clk 0:00:29]}  Rab8 {[%clk 0:00:42]} 29. Bd5+ {[%clk 0:00:27]}  Kh8 {[%clk 0:00:40]} 30. g4 {[%clk 0:00:24]}  Re5 {[%clk 0:00:38]} 31. Rd2 {[%clk 0:00:22]}  h5 {[%clk 0:00:32]} 32. gxh5 {[%clk 0:00:20]}  Rxh5 {[%clk 0:00:31]} 33. Kg2 {[%clk 0:00:18]}  Kh7 {[%clk 0:00:25]} 34. Bf3 {[%clk 0:00:13]}  Rg5+ {[%clk 0:00:22]} 35. Kf2 {[%clk 0:00:14]}  Kg6 {[%clk 0:00:20]} 36. h4 {[%clk 0:00:14]}  Re5 {[%clk 0:00:20]} 37. Kf1 {[%clk 0:00:13]}  Kh6 {[%clk 0:00:20]} 38. Rg2 {[%clk 0:00:11]}  Rb3 {[%clk 0:00:19]} 39. Bd1 {[%clk 0:00:07]}  Rh3 {[%clk 0:00:19]} 40. Bc2 {[%clk 0:00:06]}  Rh1+ {[%clk 0:00:10]} 41. Kf2 {[%clk 0:00:07]}  Rc1 {[%clk 0:00:10]} 42. Bd3 {[%clk 0:00:05]}  Rd1 {[%clk 0:00:10]} 43. Rg6+ {[%clk 0:00:03]}  Kh5 {[%clk 0:00:10]} 44. Rg5+ {[%clk 0:00:01]}  Rxg5 {[%clk 0:00:09]} 45. hxg5 {[%clk 0:00:02]}  Kxg5 {[%clk 0:00:09]} 46. Rf3 {[%clk 0:00:03]}  Rd2+ {[%clk 0:00:09]} 47. Ke3 {[%clk 0:00:04]}  Rxb2 {[%clk 0:00:09]} 48. Rg3+ {[%clk 0:00:04]}  Kh4 {[%clk 0:00:08]} 49. Rxg7 {[%clk 0:00:04]}  Rb3 {[%clk 0:00:08]} 50. Rxc7 {[%clk 0:00:04]}  Ng4+ {[%clk 0:00:05]} 51. Ke4 {[%clk 0:00:05]}  Nf2+ {[%clk 0:00:05]} 52. Kf5 {[%clk 0:00:05]}  Rxd3 {[%clk 0:00:03]} 53. Rh7+ {[%clk 0:00:06]}  Kg3 {[%clk 0:00:02]} 54. c7 {[%clk 0:00:06]}  Rf3+ {[%clk 0:00:02]} 55. Ke6 {[%clk 0:00:07]}  Rf8 {[%clk 0:00:02]} 56. Rd7 {[%clk 0:00:08]}  Ne4 {[%clk 0:00:02]} 57. Rd8 {[%clk 0:00:08]}  Ng5+ {[%clk 0:00:01]} 58. Kd5 {[%clk 0:00:08]} 1-0


[Site "https://www.chess.com"]

[Event "Titled Tuesday Blitz August 09 Late 2022"]
[White "Averjanov, Alexey"]
[Black "Kosteniuk, Alexandra"]
[WhiteFideId "14109867"]
[BlackFideId "4128125"]
[WhiteElo "2624"]
[BlackElo "2469"]
[Result "1/2-1/2"]
[Round "09"]
[TimeControl "180+1"]
[Date "2022.08.09"]
[WhiteClock "0:00:25"]
[BlackClock "0:00:15"]

1. d4 {[%clk 0:02:58]}  f5 {[%clk 0:02:52]} 2. c4 {[%clk 0:02:57]}  Nf6 {[%clk 0:02:51]} 3. Nf3 {[%clk 0:02:56]}  g6 {[%clk 0:02:51]} 4. g3 {[%clk 0:02:54]}  Bg7 {[%clk 0:02:51]} 5. Bg2 {[%clk 0:02:54]}  O-O {[%clk 0:02:51]} 6. O-O {[%clk 0:02:54]}  d6 {[%clk 0:02:52]} 7. b3 {[%clk 0:02:54]}  Nc6 {[%clk 0:02:51]} 8. Bb2 {[%clk 0:02:51]}  Qe8 {[%clk 0:02:50]} 9. d5 {[%clk 0:02:50]}  Nd8 {[%clk 0:02:48]} 10. Nc3 {[%clk 0:02:48]}  e5 {[%clk 0:02:45]} 11. dxe6 {[%clk 0:02:47]}  Nxe6 {[%clk 0:02:45]} 12. Rc1 {[%clk 0:02:45]}  Nc5 {[%clk 0:02:41]} 13. Nd4 {[%clk 0:02:40]}  Nfe4 {[%clk 0:02:33]} 14. Nd5 {[%clk 0:02:35]}  Qf7 {[%clk 0:02:32]} 15. e3 {[%clk 0:02:29]}  Ne6 {[%clk 0:02:15]} 16. Nxe6 {[%clk 0:02:15]}  Bxe6 {[%clk 0:02:15]} 17. Bxg7 {[%clk 0:02:13]}  Qxg7 {[%clk 0:02:16]} 18. Qc2 {[%clk 0:02:07]}  Rae8 {[%clk 0:01:57]} 19. Rfd1 {[%clk 0:02:02]}  Bc8 {[%clk 0:01:54]} 20. b4 {[%clk 0:01:55]}  h6 {[%clk 0:01:40]} 21. Nc3 {[%clk 0:01:52]}  Nf6 {[%clk 0:01:32]} 22. Nd5 {[%clk 0:01:51]}  Ne4 {[%clk 0:01:29]} 23. Nc3 {[%clk 0:01:47]}  Ng5 {[%clk 0:01:23]} 24. Nd5 {[%clk 0:01:40]}  Kh7 {[%clk 0:01:18]} 25. c5 {[%clk 0:01:34]}  dxc5 {[%clk 0:01:13]} 26. Qxc5 {[%clk 0:01:34]}  c6 {[%clk 0:01:12]} 27. Nf4 {[%clk 0:01:33]}  Ne6 {[%clk 0:01:06]} 28. Nxe6 {[%clk 0:01:22]}  Bxe6 {[%clk 0:01:07]} 29. Qxa7 {[%clk 0:01:05]}  Ra8 {[%clk 0:01:06]} 30. Qb6 {[%clk 0:01:05]}  Ra6 {[%clk 0:00:59]} 31. Qc5 {[%clk 0:01:02]}  Rxa2 {[%clk 0:00:59]} 32. Rd6 {[%clk 0:01:00]}  Re8 {[%clk 0:00:53]} 33. Rcd1 {[%clk 0:00:55]}  Qb2 {[%clk 0:00:48]} 34. Rf1 {[%clk 0:00:52]}  Qg7 {[%clk 0:00:45]} 35. Rfd1 {[%clk 0:00:51]}  Ra1 {[%clk 0:00:45]} 36. h4 {[%clk 0:00:46]}  Rxd1+ {[%clk 0:00:44]} 37. Rxd1 {[%clk 0:00:47]}  Qe7 {[%clk 0:00:43]} 38. Qb6 {[%clk 0:00:45]}  Ra8 {[%clk 0:00:43]} 39. b5 {[%clk 0:00:44]}  cxb5 {[%clk 0:00:43]} 40. Qxb5 {[%clk 0:00:43]}  Rb8 {[%clk 0:00:44]} 41. Qb6 {[%clk 0:00:42]}  Kg7 {[%clk 0:00:35]} 42. Rd6 {[%clk 0:00:41]}  Re8 {[%clk 0:00:33]} 43. Qxb7 {[%clk 0:00:37]}  Qxb7 {[%clk 0:00:33]} 44. Bxb7 {[%clk 0:00:38]}  Re7 {[%clk 0:00:33]} 45. Bd5 {[%clk 0:00:37]}  Bxd5 {[%clk 0:00:32]} 46. Rxd5 {[%clk 0:00:38]}  Kf6 {[%clk 0:00:30]} 47. Rd6+ {[%clk 0:00:38]}  Kg7 {[%clk 0:00:30]} 48. Kg2 {[%clk 0:00:38]}  Re4 {[%clk 0:00:30]} 49. Kf3 {[%clk 0:00:38]}  Ra4 {[%clk 0:00:30]} 50. Rd7+ {[%clk 0:00:38]}  Kf6 {[%clk 0:00:31]} 51. Rd6+ {[%clk 0:00:38]}  Kg7 {[%clk 0:00:31]} 52. Rc6 {[%clk 0:00:39]}  Rb4 {[%clk 0:00:30]} 53. Ra6 {[%clk 0:00:39]}  Rc4 {[%clk 0:00:31]} 54. Ra7+ {[%clk 0:00:39]}  Kf6 {[%clk 0:00:30]} 55. Rh7 {[%clk 0:00:39]}  h5 {[%clk 0:00:30]} 56. Ra7 {[%clk 0:00:38]}  Rb4 {[%clk 0:00:30]} 57. Ra6+ {[%clk 0:00:38]}  Kg7 {[%clk 0:00:30]} 58. Rd6 {[%clk 0:00:38]}  Kf7 {[%clk 0:00:27]} 59. Rd7+ {[%clk 0:00:38]}  Kf6 {[%clk 0:00:27]} 60. Rd6+ {[%clk 0:00:38]}  Kf7 {[%clk 0:00:27]} 61. Rd4 {[%clk 0:00:39]}  Rb2 {[%clk 0:00:27]} 62. Rd7+ {[%clk 0:00:38]}  Kf6 {[%clk 0:00:27]} 63. Rd6+ {[%clk 0:00:38]}  Kf7 {[%clk 0:00:26]} 64. Rc6 {[%clk 0:00:38]}  Ra2 {[%clk 0:00:25]} 65. Rb6 {[%clk 0:00:38]}  Rc2 {[%clk 0:00:25]} 66. Rb7+ {[%clk 0:00:38]}  Kf6 {[%clk 0:00:25]} 67. Rb6+ {[%clk 0:00:39]}  Kf7 {[%clk 0:00:25]} 68. Ra6 {[%clk 0:00:39]}  Rb2 {[%clk 0:00:25]} 69. Ra4 {[%clk 0:00:39]}  Kf6 {[%clk 0:00:25]} 70. Ra6+ {[%clk 0:00:39]}  Kf7 {[%clk 0:00:25]} 71. Ra3 {[%clk 0:00:39]}  Kf6 {[%clk 0:00:24]} 72. Ra4 {[%clk 0:00:39]}  Rc2 {[%clk 0:00:23]} 73. e4 {[%clk 0:00:39]}  fxe4+ {[%clk 0:00:23]} 74. Rxe4 {[%clk 0:00:39]}  Rb2 {[%clk 0:00:22]} 75. Ke3 {[%clk 0:00:38]}  Ra2 {[%clk 0:00:21]} 76. f3 {[%clk 0:00:37]}  Ra6 {[%clk 0:00:19]} 77. Kf4 {[%clk 0:00:37]}  Rc6 {[%clk 0:00:20]} 78. Rd4 {[%clk 0:00:37]}  Rb6 {[%clk 0:00:20]} 79. Rc4 {[%clk 0:00:37]}  Ra6 {[%clk 0:00:20]} 80. Rb4 {[%clk 0:00:37]}  Rc6 {[%clk 0:00:21]} 81. Ra4 {[%clk 0:00:37]}  Rd6 {[%clk 0:00:21]} 82. Rb4 {[%clk 0:00:35]}  Rc6 {[%clk 0:00:21]} 83. g4 {[%clk 0:00:35]}  hxg4 {[%clk 0:00:21]} 84. fxg4 {[%clk 0:00:36]}  Rc1 {[%clk 0:00:20]} 85. Rb6+ {[%clk 0:00:36]}  Kg7 {[%clk 0:00:21]} 86. Rb7+ {[%clk 0:00:35]}  Kf6 {[%clk 0:00:17]} 87. g5+ {[%clk 0:00:32]}  Ke6 {[%clk 0:00:18]} 88. Rb6+ {[%clk 0:00:30]}  Kf7 {[%clk 0:00:18]} 89. Rb4 {[%clk 0:00:28]}  Re1 {[%clk 0:00:16]} 90. Re4 {[%clk 0:00:28]}  Rf1+ {[%clk 0:00:16]} 91. Kg4 {[%clk 0:00:26]}  Rg1+ {[%clk 0:00:16]} 92. Kf4 {[%clk 0:00:26]}  Rf1+ {[%clk 0:00:16]} 93. Ke5 {[%clk 0:00:26]}  Ra1 {[%clk 0:00:16]} 94. Rd4 {[%clk 0:00:25]}  Re1+ {[%clk 0:00:15]} 95. Re4 {[%clk 0:00:25]}  Ra1 {[%clk 0:00:15]} 96. Kf4 {[%clk 0:00:25]}  Rf1+ {[%clk 0:00:15]} 1/2-1/2


[Site "https://www.chess.com"]